fUST/lending_fUST_20240519
["ID","MTS","AMOUNT","RATE_DAILY","PERIOD"]
[327470687,1716097832828,-819.80013339,0.00015599,2]
[327471508,1716097841035,-427.63664462,0.00015599,2]
[327471511,1716097841047,-376.76313077,0.00015599,2]
[327471513,1716097841057,-189.91157371,0.000156,2]
[327471515,1716097841067,-1270.0,0.00016248,2]
[327471517,1716097841079,-399.5440413,0.0001625,2]
[327471520,1716097841102,-101.7399587,0.0001625,2]
[327471522,1716097841112,-150.0,0.0001625,2]
[327471524,1716097841121,-4636.56095865,0.00016438,3]
[327471526,1716097841131,-503.67950909,0.00016438,2]
[327471529,1716097841140,-500.0,0.00016438,2]
[327471531,1716097841150,-500.0,0.00016438,2]
[327471532,1716097841159,-500.0,0.00016438,2]
[327471534,1716097841167,-500.0,0.00016438,2]
[327471536,1716097841176,-500.0,0.00016438,2]
[327471538,1716097841186,-500.0,0.00016438,2]
[327471540,1716097841195,-500.0,0.00016438,2]
[327471542,1716097841204,-500.0,0.00016438,2]
[327471545,1716097841214,-500.0,0.00016438,2]
[327471547,1716097841224,-500.0,0.00016438,2]
[327471549,1716097841234,-500.0,0.00016438,2]
[327471551,1716097841244,-504.22522542,0.00016438,2]
[327471553,1716097841254,-502.07703057,0.00016438,2]
[327471555,1716097841263,-500.0,0.00016438,2]
[327471557,1716097841272,-690.92,0.00016438,2]
[327471559,1716097841282,-500.0,0.00016438,2]
[327471561,1716097841291,-500.0,0.00016438,2]
[327471563,1716097841301,-501.88449243,0.00016438,2]
[327471565,1716097841310,-500.0,0.00016438,2]
[327471567,1716097841319,-500.0,0.00016438,2]
[327471569,1716097841329,-500.0,0.00016438,2]
[327471571,1716097841338,-500.0,0.00016438,2]
[327471573,1716097841347,-500.0,0.00016438,2]
[327471575,1716097841356,-623.79,0.00016438,2]
[327471577,1716097841366,-504.24096694,0.00016438,2]
[327471579,1716097841376,-500.0,0.00016438,2]
[327471581,1716097841385,-500.0,0.00016438,2]
[327471583,1716097841395,-500.0,0.00016438,2]
[327471585,1716097841403,-500.06494053,0.00016438,2]
[327471587,1716097841416,-500.0,0.00016438,2]
[327471589,1716097841426,-500.0,0.00016438,2]
[327471591,1716097841436,-502.5331871,0.00016438,2]
[327471593,1716097841446,-500.0,0.00016438,2]
[327471595,1716097841455,-152.403553,0.00016438,2]
[327471597,1716097841465,-504.78350614,0.00016438,2]
[327471599,1716097841475,-500.0,0.00016438,2]
[327471601,1716097841484,-500.0,0.00016438,2]
[327471603,1716097841493,-500.0,0.00016438,2]
[327471605,1716097841503,-500.0,0.00016438,2]
[327471607,1716097841512,-646.15,0.00016438,2]
[327471609,1716097841521,-339.21033176,0.00016438,2]
[327471611,1716097841531,-500.0,0.00016438,2]
[327471613,1716097841540,-500.0,0.00016438,2]
[327471615,1716097841550,-1014.36,0.00016438,2]
[327471617,1716097841559,-762.53,0.00016438,2]
[327471619,1716097841569,-151.0,0.00016438,2]
[327471621,1716097841579,-500.0,0.00016438,2]
[327471623,1716097841588,-151.0,0.00016438,2]
[327471625,1716097841598,-500.0,0.00016438,2]
[327471627,1716097841607,-1659.38,0.00016438,2]
[327471629,1716097841617,-500.0,0.00016438,2]
[327471631,1716097841626,-500.0,0.00016438,2]
[327471633,1716097841635,-500.0,0.00016438,2]
[327471635,1716097841644,-500.0,0.00016438,2]
[327471637,1716097841653,-500.0,0.00016438,2]
[327471639,1716097841662,-500.0,0.00016438,2]
[327471641,1716097841671,-510.05,0.00016438,2]
[327471643,1716097841681,-519.38636953,0.00016438,2]
[327471645,1716097841690,-502.37782329,0.00016438,2]
[327471647,1716097841699,-500.0,0.00016438,2]
[327471649,1716097841709,-500.0,0.00016438,2]
[327471651,1716097841719,-500.0,0.00016438,2]
[327471653,1716097841728,-500.0,0.00016438,2]
[327471667,1716097841737,-501.27331994,0.00016438,2]
[327471669,1716097841863,-500.0,0.00016438,2]
[327471671,1716097841873,-500.0,0.00016438,2]
[327471673,1716097841882,-500.0,0.00016438,2]
[327471675,1716097841892,-1482.29,0.00016438,2]
[327471677,1716097841902,-553.2877763,0.00016438,2]
[327471679,1716097841911,-500.0,0.00016438,2]
[327471681,1716097841920,-500.0,0.00016438,2]
[327471683,1716097841933,-500.0,0.00016438,2]
[327471685,1716097841944,-1170.33,0.00016438,2]
[327471687,1716097841953,-640.84,0.00016438,2]
[327471689,1716097841961,-500.0,0.00016438,2]
[327471691,1716097841970,-1039.74,0.00016438,2]
[327471693,1716097841979,-500.0,0.00016438,2]
[327471695,1716097841988,-151.0,0.00016438,2]
[327471697,1716097841997,-500.0,0.00016438,2]
[327471699,1716097842006,-1361.16,0.00016438,2]
[327471701,1716097842015,-1042.25,0.00016438,2]
[327471702,1716097842025,-500.0,0.00016438,2]
[327471704,1716097842034,-500.0,0.00016438,2]
[327471706,1716097842044,-500.0,0.00016438,2]
[327471708,1716097842054,-503.02634723,0.00016438,2]
[327471710,1716097842064,-500.0,0.00016438,4]
[327471712,1716097842074,-500.0,0.00016438,2]
[327471714,1716097842084,-500.0,0.00016438,2]
[327471716,1716097842093,-626.84,0.00016438,2]
[327471718,1716097842102,-517.21182988,0.00016438,2]
[327471720,1716097842111,-568.18163001,0.00016438,2]
[327471722,1716097842119,-500.49525345,0.00016438,2]
[327471724,1716097842129,-504.5113909,0.00016438,2]
[327471726,1716097842138,-509.92,0.00016438,2]
[327471728,1716097842148,-1012.87,0.00016438,2]
[327471730,1716097842157,-500.0,0.00016438,2]
[327471732,1716097842166,-500.0,0.00016438,2]
[327471734,1716097842175,-500.0,0.00016438,2]
[327471736,1716097842184,-3127.41,0.00016438,2]
[327471738,1716097842193,-500.0,0.00016438,2]
[327471740,1716097842202,-568.91158761,0.00016438,2]
[327471742,1716097842211,-504.4694718,0.00016438,2]
[327471744,1716097842221,-500.0,0.00016438,2]
[327471746,1716097842230,-500.0,0.00016438,2]
[327471748,1716097842240,-500.0,0.00016438,2]
[327471750,1716097842249,-1383.26,0.00016438,2]
[327471752,1716097842259,-151.0,0.00016438,2]
[327471754,1716097842268,-666.91,0.00016438,2]
[327471756,1716097842277,-151.0,0.00016438,2]
[327471758,1716097842287,-1959.52,0.00016438,2]
[327471760,1716097842295,-499.81867086,0.00016438,2]
[327471762,1716097842304,-500.0,0.00016438,2]
[327471764,1716097842313,-500.0,0.00016438,2]
[327471766,1716097842322,-500.0,0.00016438,2]
[327471768,1716097842332,-500.0,0.00016438,2]
[327471769,1716097842341,-500.0,0.00016438,2]
[327471771,1716097842350,-526.06,0.00016438,2]
[327471773,1716097842360,-500.0,0.00016438,2]
[327471775,1716097842369,-804.78,0.00016438,2]
[327471777,1716097842378,-500.0,0.00016438,2]
[327471779,1716097842388,-500.0,0.00016438,2]
[327471781,1716097842397,-1186.59,0.00016438,2]
[327471783,1716097842406,-500.0,0.00016438,2]
[327471785,1716097842415,-3556.79,0.00016438,2]
[327471787,1716097842425,-500.0,0.00016438,2]
[327471789,1716097842434,-500.0,0.00016438,2]
[327471791,1716097842443,-500.0,0.00016438,2]
[327471793,1716097842452,-197.09610662,0.00016438,2]
[327471795,1716097842461,-500.0,0.00016438,2]
[327471797,1716097842471,-1071.81,0.00016438,2]
[327471799,1716097842480,-500.0,0.00016438,2]
[327471801,1716097842489,-500.0,0.00016438,2]
[327471803,1716097842498,-506.21524719,0.00016438,2]
[327471805,1716097842508,-500.0,0.00016438,2]
[327471807,1716097842517,-675.9,0.00016438,2]
[327471809,1716097842527,-1371.4,0.00016438,2]
[327471811,1716097842535,-500.0,0.00016438,2]
[327471813,1716097842544,-500.0,0.00016438,2]
[327471815,1716097842553,-500.0,0.00016438,2]
[327471817,1716097842562,-1999.91,0.00016438,2]
[327471819,1716097842571,-2305.73,0.00016438,2]
[327471820,1716097842581,-500.0,0.00016438,2]
[327471822,1716097842590,-1223.97,0.00016438,2]
[327471824,1716097842600,-500.0,0.00016438,2]
[327471826,1716097842609,-851.2,0.00016438,2]
[327471828,1716097842618,-505.22302712,0.00016438,2]
[327471830,1716097842628,-500.0,0.00016438,2]
[327471832,1716097842637,-578.78,0.00016438,2]
[327471834,1716097842646,-500.0,0.00016438,2]
[327471836,1716097842655,-500.0,0.00016438,2]
[327471838,1716097842664,-500.0,0.00016438,2]
[327471840,1716097842673,-3035.03,0.00016438,2]
[327471842,1716097842683,-500.0,0.00016438,2]
[327471844,1716097842692,-2012.48,0.00016438,2]
[327471846,1716097842701,-500.0,0.00016438,2]
[327471848,1716097842710,-152.053195,0.00016438,2]
[327471850,1716097842719,-3418.58,0.00016438,2]
[327471852,1716097842729,-500.0,0.00016438,2]
[327471854,1716097842738,-500.0,0.00016438,2]
[327471856,1716097842748,-500.0,0.00016438,2]
[327471858,1716097842757,-500.0,0.00016438,2]
[327471860,1716097842766,-1305.3,0.00016438,2]
[327471862,1716097842775,-500.0,0.00016438,2]
[327471864,1716097842784,-695.34,0.00016438,2]
[327471866,1716097842793,-500.0,0.00016438,2]
[327471868,1716097842803,-500.0,0.00016438,2]
[327471870,1716097842812,-500.0,0.00016438,2]
[327471872,1716097842821,-500.0,0.00016438,2]
[327471874,1716097842831,-500.0,0.00016438,2]
[327471875,1716097842840,-601.44,0.00016438,2]
[327471876,1716097842853,-1582.19,0.00016438,2]
[327471877,1716097842863,-151.0,0.00016438,2]
[327471878,1716097842872,-511.65,0.00016438,2]
[327471879,1716097842883,-187.906378,0.00016438,2]
[327471880,1716097842892,-198.345706,0.00016438,2]
[327471881,1716097842901,-500.0,0.00016438,2]
[327471882,1716097842910,-500.0,0.00016438,2]
[327471883,1716097842921,-4532.34,0.00016438,2]
[327471884,1716097842931,-500.0,0.00016438,2]
[327471885,1716097842940,-503.89407468,0.00016438,2]
[327471886,1716097842949,-500.0,0.00016438,2]
[327471887,1716097842958,-500.0,0.00016438,2]
[327471888,1716097842967,-2148.76,0.00016438,2]
[327471889,1716097842976,-500.0,0.00016438,2]
[327471890,1716097842985,-500.0,0.00016438,2]
[327471891,1716097842995,-1229.06,0.00016438,2]
[327471892,1716097843004,-53565.4,0.00016438,2]
[327471893,1716097843013,-1302.74301586,0.00016438,2]
[327471957,1716097844558,-384.31698414,0.00016438,2]
[327471959,1716097844568,-502.27946367,0.00016438,2]
[327471961,1716097844578,-500.0,0.00016438,2]
[327471963,1716097844588,-504.67908376,0.00016438,2]
[327471965,1716097844597,-7309.94,0.00016438,2]
[327471967,1716097844606,-500.0,0.00016438,2]
[327471969,1716097844616,-2475.94,0.00016438,2]
[327471971,1716097844625,-265.5427919,0.00016438,2]
[327471973,1716097844634,-500.0,0.00016438,2]
[327471975,1716097844643,-500.0,0.00016438,2]
[327471977,1716097844652,-335.51671654,0.00016438,2]
[327471978,1716097844662,-797.47,0.00016438,2]
[327471980,1716097844671,-500.0,0.00016438,2]
[327471981,1716097844681,-500.0,0.00016438,2]
[327471982,1716097844690,-501.17589253,0.00016438,2]
[327471983,1716097844700,-500.0,0.00016438,2]
[327471984,1716097844709,-1565.93,0.00016438,2]
[327471986,1716097844719,-500.0,0.00016438,2]
[327471988,1716097844728,-195.71230517,0.00016438,2]
[327471990,1716097844738,-347.23107868,0.00016438,2]
[327471992,1716097844747,-1821.55,0.00016438,2]
[327471994,1716097844757,-12789.71,0.00016438,2]
[327471996,1716097844766,-2422.54,0.00016438,2]
[327471998,1716097844775,-899.13,0.00016438,2]
[327472000,1716097844785,-500.0,0.00016438,2]
[327472002,1716097844795,-500.0,0.00016438,2]
[327472004,1716097844804,-500.0,0.00016438,2]
[327472006,1716097844814,-1970.23,0.00016438,2]
[327472008,1716097844823,-849.04,0.00016438,2]
[327472010,1716097844834,-502.50120164,0.00016438,2]
[327472012,1716097844847,-1420.46,0.00016438,2]
[327472014,1716097844857,-2984.97,0.00016438,2]
[327472016,1716097844866,-289.15058684,0.00016438,2]
[327472018,1716097844876,-1138.68,0.00016438,2]
[327472020,1716097844887,-156.193535,0.00016438,2]
[327472022,1716097844897,-505.15539296,0.00016438,2]
[327472024,1716097844907,-500.0,0.00016438,2]
[327472026,1716097844920,-175.828378,0.00016438,2]
[327472028,1716097844929,-502.55472524,0.00016438,2]
[327472030,1716097844938,-501.78171743,0.00016438,2]
[327472032,1716097844949,-500.0,0.00016438,2]
[327472034,1716097844958,-500.0,0.00016438,2]
[327472036,1716097844967,-254.19151539,0.00016438,2]
[327472038,1716097844977,-714.58,0.00016438,2]
[327472040,1716097844987,-500.0,0.00016438,2]
[327472042,1716097844997,-500.0,0.00016438,2]
[327472044,1716097845006,-500.0,0.00016438,2]
[327472046,1716097845016,-621.33,0.00016438,2]
[327472048,1716097845026,-500.0,0.00016438,2]
[327472050,1716097845035,-500.0,0.00016438,2]
[327472052,1716097845045,-509.46778397,0.00016438,2]
[327472054,1716097845053,-505.03,0.00016438,2]
[327472056,1716097845062,-534.33,0.00016438,2]
[327472058,1716097845071,-528.5,0.00016438,2]
[327472060,1716097845081,-151.0,0.00016438,2]
[327472062,1716097845090,-151.0,0.00016438,2]
[327472064,1716097845099,-151.0,0.00016438,2]
[327472066,1716097845107,-1036.75,0.00016438,2]
[327472068,1716097845116,-500.0,0.00016438,2]
[327472070,1716097845126,-500.0,0.00016438,2]
[327472071,1716097845135,-151.0,0.00016438,2]
[327472073,1716097845144,-88.78447025,0.00016438,2]
[327472381,1716098024783,715.68,0.000265,120]
[327472384,1716098081213,1699.2,0.00015,2]
[327472389,1716098546178,1058.59,0.000265,120]
[327472391,1716098958751,858.59,0.000265,120]
[327472464,1716099038532,-189.91157371,0.000156,2]
[327472465,1716099038543,-1270.0,0.00016,2]
[327472466,1716099038553,-456.00255192,0.0001625,2]
[327472467,1716099038613,-39.99744808,0.0001625,2]
[327472468,1716099038622,-161.05337308,0.00016438,3]
[327472469,1716099038631,-2318.28047932,0.00016438,3]
[327472470,1716099038641,-506.00552339,0.00016438,2]
[327472471,1716099038651,-500.0,0.00016438,2]
[327472472,1716099038660,-500.0,0.00016438,2]
[327472473,1716099038669,-500.0,0.00016438,2]
[327472474,1716099038678,-447.40037399,0.00016438,2]
[327472475,1716099038689,-500.0,0.00016438,2]
[327472476,1716099038699,-500.0,0.00016438,2]
[327472477,1716099038708,-500.0,0.00016438,2]
[327472478,1716099038717,-500.0,0.00016438,2]
[327472479,1716099038726,-504.1802006,0.00016438,2]
[327472480,1716099038736,-500.0,0.00016438,2]
[327472481,1716099038745,-500.0,0.00016438,2]
[327472482,1716099038755,-163.44795416,0.00016438,2]
[327472483,1716099038763,-996.42,0.00016438,2]
[327472484,1716099038773,-500.0,0.00016438,2]
[327472485,1716099038782,-404.96400167,0.00016438,2]
[327472579,1716099058608,2114.69992538,9.999e-05,2]
[327472586,1716099482327,1000.0,0.00023,30]
[327472587,1716099535303,1000.0,0.00024,60]
[327472588,1716099642818,150.0,0.00014131,3]
[327472611,1716100238379,-189.91157371,0.000156,2]
[327472612,1716100238388,-1000.0,0.00016,3]
[327472613,1716100238397,-833.72215624,0.00016,2]
[327472988,1716100828792,150.0,0.000142,3]
[327473038,1716101440414,-189.91157371,0.000156,2]
[327473040,1716101440423,-124.56241846,0.00016,2]
[327473042,1716101440434,-1002.06316,0.00016,2]
[327473079,1716101443806,-143.37442154,0.00016,2]
[327473080,1716101443816,-155.98092406,0.00016338,2]
[327473081,1716101443826,-1034.48278723,0.00016435,2]
[327473082,1716101443835,-1432.08572178,0.00016436,2]
[327473083,1716101443844,-1159.14023966,0.00016438,3]
[327473084,1716101443854,-500.0,0.00016438,2]
[327473085,1716101443863,-500.0,0.00016438,2]
[327473086,1716101443872,-500.0,0.00016438,2]
[327473087,1716101443882,-500.0,0.00016438,2]
[327473088,1716101443891,-500.0,0.00016438,2]
[327473089,1716101443900,-274.93590573,0.00016438,2]
[327473221,1716102028766,225.0,0.00014831,2]
[327473222,1716102028902,225.0,0.00014413,2]
[327473223,1716102029047,225.0,0.00014413,3]
[327473224,1716102029211,225.0,0.00014622,2]
[327473227,1716102208223,24870.0,0.00014954,2]
[327473236,1716102628287,150.0,0.00014622,2]
[327473237,1716102628515,150.0,0.00014413,2]
[327473238,1716102628550,150.0,0.00014413,3]
[327473239,1716102628607,150.0,0.00014831,2]
[327473313,1716102632878,-150.0,0.0001504,2]
[327473315,1716102632888,-150.0,0.00015249,2]
[327473317,1716102632898,-150.0,0.00015458,2]
[327473319,1716102632907,-189.91157371,0.000156,2]
[327473321,1716102632917,-113.90413437,0.00015614,2]
[327473323,1716102632929,-386.69774718,0.00015614,2]
[327473326,1716102632939,-150.0,0.00015667,2]
[327473328,1716102632949,-291.2684803,0.000157,2]
[327473330,1716102632959,-153.0,0.000157,2]
[327473332,1716102632968,-313.5935837,0.000157,2]
[327473334,1716102632978,-322.5083448,0.000157,2]
[327473336,1716102632987,-291.2684803,0.000157,2]
[327473338,1716102632997,-153.0,0.000157,2]
[327473339,1716102633008,-153.0,0.000157,2]
[327473341,1716102633017,-291.2684803,0.000157,2]
[327473343,1716102633027,-153.0,0.000157,2]
[327473345,1716102633036,-310.0455383,0.000157,2]
[327473347,1716102633046,-291.2684803,0.000157,2]
[327473349,1716102633054,-153.0,0.000157,2]
[327473351,1716102633063,-291.2684803,0.000157,2]
[327473353,1716102633072,-298.4826471,0.00015778,2]
[327473355,1716102633082,-150.0,0.00015876,2]
[327473357,1716102633091,-151.0,0.00015952,2]
[327473359,1716102633101,-151.0,0.00015952,2]
[327473362,1716102633111,-151.0,0.00015952,2]
[327473364,1716102633120,-151.0,0.00015952,2]
[327473366,1716102633130,-282.376063,0.00015952,2]
[327473367,1716102633139,-282.376063,0.00015952,2]
[327473369,1716102633148,-282.376063,0.00015952,2]
[327473371,1716102633159,-282.376063,0.00015952,2]
[327473374,1716102633170,-282.376063,0.00015952,2]
[327473375,1716102633179,-151.0,0.00015952,2]
[327473377,1716102633188,-282.376063,0.00015952,2]
[327473380,1716102633198,-151.0,0.00015952,2]
[327473381,1716102633207,-205.190862,0.00015952,2]
[327473384,1716102633217,-151.0,0.00015952,2]
[327473385,1716102633227,-216.774614,0.00015952,2]
[327473387,1716102633237,-153.0,0.00015952,2]
[327473390,1716102633248,-153.0,0.00015952,2]
[327473391,1716102633259,-153.0,0.00015952,2]
[327473393,1716102633272,-153.0,0.00015952,2]
[327473396,1716102633284,-318.0706829,0.00015952,2]
[327473398,1716102633295,-153.0,0.00015952,2]
[327473400,1716102633304,-306.0,0.00015952,2]
[327473401,1716102633313,-169.4173,0.00015978,2]
[327473403,1716102633322,-282.376063,0.00015978,2]
[327473405,1716102633331,-282.376063,0.00015978,2]
[327473407,1716102633341,-291.2684803,0.00015978,2]
[327473410,1716102633351,-151.0,0.00016,2]
[327473412,1716102633360,-151.0,0.00016,2]
[327473414,1716102633369,-151.0,0.00016,2]
[327473416,1716102633379,-1270.0,0.00016,2]
[327473418,1716102633388,-282.376063,0.00016,2]
[327473420,1716102633398,-282.376063,0.00016,2]
[327473421,1716102633407,-282.376063,0.00016,2]
[327473424,1716102633417,-282.376063,0.00016,2]
[327473426,1716102633426,-282.376063,0.00016,2]
[327473428,1716102633436,-282.376063,0.00016,2]
[327473430,1716102633445,-282.376063,0.00016,2]
[327473431,1716102633454,-282.376063,0.00016,2]
[327473433,1716102633463,-282.376063,0.00016,2]
[327473435,1716102633472,-282.376063,0.00016,2]
[327473437,1716102633482,-153.0,0.00016052,2]
[327473439,1716102633491,-282.376063,0.00016083,2]
[327473441,1716102633500,-282.376067,0.00016083,2]
[327473443,1716102633510,-151.0,0.00016084,2]
[327473445,1716102633519,-151.0,0.00016084,2]
[327473447,1716102633529,-151.0,0.00016084,2]
[327473450,1716102633539,-229.076184,0.00016085,2]
[327473452,1716102633548,-150.0,0.00016085,2]
[327473454,1716102633558,-151.0,0.00016211,2]
[327473456,1716102633567,-151.0,0.00016211,2]
[327473469,1716102633685,-153.0,0.00016252,2]
[327473471,1716102633695,-150.40028902,0.00016273,2]
[327473473,1716102633705,-150.0,0.00016294,2]
[327473475,1716102633714,-4221.46001999,0.00016298,2]
[327473477,1716102633723,-495.0,0.00016301,2]
[327473478,1716102633733,-151.0,0.00016329,2]
[327473479,1716102633742,-151.0,0.00016329,2]
[327473480,1716102633752,-225.17650391,0.00016436,2]
[327473481,1716102633761,-406.30178098,0.00016436,2]
[327473482,1716102633770,-919.00810868,0.00016436,2]
[327473483,1716102633779,-397.30970894,0.00016436,2]
[327473484,1716102633789,-531.36807526,0.00016436,2]
[327473485,1716102633798,-1803.93549992,0.00016436,2]
[327473486,1716102633808,-151.0,0.00016436,2]
[327473487,1716102633817,-151.0,0.00016436,2]
[327473488,1716102633827,-151.0,0.00016436,2]
[327473489,1716102633836,-176.780098,0.00016436,2]
[327473490,1716102633845,-2106.56360216,0.00016437,2]
[327473491,1716102633855,-579.57011983,0.00016438,3]
[327473492,1716102633865,-385.75083501,0.00016438,2]
[327473493,1716102633874,-500.0,0.00016438,2]
[327473494,1716102633883,-500.0,0.00016438,2]
[327473495,1716102633892,-500.0,0.00016438,2]
[327473496,1716102633901,-500.0,0.00016438,2]
[327473498,1716102633910,-500.0,0.00016438,2]
[327473500,1716102633920,-500.0,0.00016438,2]
[327473502,1716102633929,-500.0,0.00016438,2]
[327473503,1716102633938,-500.0,0.00016438,2]
[327473505,1716102633948,-503.94277304,0.00016438,2]
[327473507,1716102633957,-500.0,0.00016438,2]
[327473509,1716102633966,-500.0,0.00016438,2]
[327473511,1716102633976,-500.0,0.00016438,2]
[327473513,1716102633985,-500.0,0.00016438,2]
[327473515,1716102633994,-954.9,0.00016438,2]
[327473517,1716102634004,-500.0,0.00016438,2]
[327473519,1716102634013,-504.20273973,0.00016438,2]
[327473521,1716102634023,-500.0,0.00016438,2]
[327473523,1716102634032,-500.0,0.00016438,4]
[327473525,1716102634042,-500.0,0.00016438,2]
[327473527,1716102634051,-500.0,0.00016438,2]
[327473529,1716102634060,-500.0,0.00016438,2]
[327473531,1716102634068,-502.63572419,0.00016438,2]
[327473533,1716102634078,-500.0,0.00016438,2]
[327473535,1716102634087,-500.0,0.00016438,2]
[327473537,1716102634096,-500.0,0.00016438,2]
[327473539,1716102634105,-500.0,0.00016438,2]
[327473541,1716102634114,-500.0,0.00016438,2]
[327473543,1716102634123,-500.0,0.00016438,2]
[327473545,1716102634133,-500.0,0.00016438,2]
[327473547,1716102634142,-500.0,0.00016438,2]
[327473549,1716102634151,-500.0,0.00016438,2]
[327473551,1716102634160,-500.0,0.00016438,2]
[327473553,1716102634169,-500.0,0.00016438,2]
[327473555,1716102634179,-500.0,0.00016438,2]
[327473557,1716102634187,-500.0,0.00016438,2]
[327473559,1716102634196,-500.0,0.00016438,2]
[327473561,1716102634205,-655.4,0.00016438,2]
[327473563,1716102634214,-500.0,0.00016438,2]
[327473565,1716102634223,-289.9,0.00016438,2]
[327473567,1716102634233,-1297.07,0.00016438,2]
[327473569,1716102634242,-500.0,0.00016438,2]
[327473571,1716102634251,-522.5626897,0.00016438,2]
[327473573,1716102634260,-162.29972893,0.00016438,2]
[327473575,1716102634271,-614.13,0.00016438,2]
[327473577,1716102634282,-500.0,0.00016438,2]
[327473579,1716102634292,-500.0,0.00016438,2]
[327473581,1716102634301,-666.37,0.00016438,2]
[327473583,1716102634310,-500.0,0.00016438,2]
[327473585,1716102634319,-500.0,0.00016438,2]
[327473587,1716102634328,-500.0,0.00016438,2]
[327473589,1716102634338,-1420.53,0.00016438,2]
[327473591,1716102634347,-1121.57,0.00016438,2]
[327473593,1716102634356,-1692.47,0.00016438,2]
[327473595,1716102634365,-1328.01,0.00016438,2]
[327473597,1716102634374,-639.13,0.00016438,2]
[327473599,1716102634383,-500.0,0.00016438,2]
[327473601,1716102634392,-998.82,0.00016438,2]
[327473603,1716102634401,-500.0,0.00016438,2]
[327473605,1716102634410,-500.0,0.00016438,2]
[327473607,1716102634420,-600.72,0.00016438,2]
[327473609,1716102634429,-500.0,0.00016438,2]
[327473610,1716102634439,-500.0,0.00016438,2]
[327473612,1716102634448,-500.0,0.00016438,2]
[327473614,1716102634457,-500.0,0.00016438,2]
[327473616,1716102634466,-625.63466386,0.00016438,2]
[327473618,1716102634475,-500.0,0.00016438,2]
[327473619,1716102634484,-500.0,0.00016438,2]
[327473621,1716102634493,-503.58691796,0.00016438,2]
[327473623,1716102634503,-500.0,0.00016438,2]
[327473625,1716102634512,-1951.79,0.00016438,2]
[327473627,1716102634521,-2997.1,0.00016438,2]
[327473628,1716102634530,-1349.02,0.00016438,2]
[327473630,1716102634540,-1455.08,0.00016438,2]
[327473631,1716102634549,-150.8,0.00016438,2]
[327473632,1716102634558,-504.11236006,0.00016438,2]
[327473633,1716102634567,-500.0,0.00016438,2]
[327473634,1716102634577,-834.5,0.00016438,2]
[327473635,1716102634586,-500.0,0.00016438,2]
[327473636,1716102634595,-597.91654627,0.00016438,2]
[327473637,1716102634605,-500.0,0.00016438,2]
[327473638,1716102634614,-792.08,0.00016438,2]
[327473639,1716102634624,-991.5,0.00016438,2]
[327473640,1716102634633,-500.0,0.00016438,2]
[327473641,1716102634643,-500.0,0.00016438,2]
[327473642,1716102634653,-1177.41,0.00016438,2]
[327473643,1716102634662,-500.0,0.00016438,2]
[327473644,1716102634671,-500.0,0.00016438,2]
[327473645,1716102634681,-503.05674985,0.00016438,2]
[327473646,1716102634690,-532.9,0.00016438,2]
[327473647,1716102634700,-500.0,0.00016438,2]
[327473648,1716102634710,-500.0,0.00016438,2]